{"text_format":"1","workbook":"xlsx","n_sheets":3,"sheets":[" correction ex 1 et 2 ","Fiche d'évaluation","Description des compétences"],"not_rendered":{"charts":0,"images":2,"macros":1,"external_links":0,"defined_names":1,"comments":2,"pivot_tables":0},"unopened":[],"bounds":{"document_bytes":16777216,"sheet_cells":100000,"rows_first":2000,"rows_last":500,"rows_between":2000,"halvings":0,"cell_chars":16384,"cell_head_chars":4096},"cells_cut":0,"cells_raw":0,"read":"whole","date_system":"1900"}

{"sheet":" correction ex 1 et 2 ","index":0,"n_rows":44,"n_cols":15,"rows_kept":44,"cut":false,"hidden":false,"merged":[[1,4,1,10],[4,4,4,10],[3,4,3,10],[31,8,35,8],[31,9,31,10],[11,8,15,8],[11,9,11,10],[16,8,20,8],[16,9,16,10],[21,8,25,8],[21,9,21,10],[6,7,35,7],[6,8,10,8],[6,9,6,10],[11,3,11,4],[26,8,30,8],[26,9,26,10],[6,1,35,1],[6,2,10,2],[6,3,6,4],[16,3,16,4],[16,2,20,2],[21,2,25,2],[21,3,21,4],[26,2,30,2],[26,3,26,4],[11,2,15,2],[31,3,31,4],[31,2,35,2]]}
[]
["Identification du sujet :",{"$f":"'Fiche d''évaluation'!C3","v":"sujet 2"},null,null,"Grille de correction sujet E3C sciences de l'ingénieur"]
["Session :",{"$f":"'Fiche d''évaluation'!C4","v":2019}]
["Date de l'évaluation :",{"$f":"'Fiche d''évaluation'!C5","v":43764},null,null,{"$f":"IF('Description des compétences'!$F$42=1,L5,\"\")","v":""}]
[null,null,null,null,null,null,null,null,null,null,null,"SUJET NON CONFORME MOINS DE 50% DES COMPÉTENCES ÉVALUÉES"]
[null,null,null,"Niv.","Description de l'attendu à la question","Attribution",null,null,null,"Niv.","Description de l'attendu à la question","Attribution"]
[null,"Exercice n°1\nPerformance d'un produit","Question n°1","Non Traité",null,null,{"$f":"IF(COUNTBLANK(F7),0,1)","v":0},"Exercice n°2 \nContrôle commande d'un produit et informatique \n","Question n°1","Non Traité",null,null,{"$f":"IF(COUNTBLANK(L7),0,1)","v":0}]
[null,null,null,0,"Aucune des réponses justes",null,{"$f":"IF(COUNTBLANK(F8),0,1)","v":0},null,null,0,"Aucune association d'une figure LEVEL",null,0]
[null,null,null,1,"Relation exacte et calcul de la norme vitesse fausse sans unité",null,0,null,null,1,"Association d'une figure LEVEL",null,0]
[null,null,null,2,"Relation exacte et calcul de la norme vitesse fausse unité juste",null,0,null,null,2,"Association de 2 figures LEVEL",null,0]
[null,null,null,3,"Relation exacte et calcul de la norme vitesse juste avec les unités",null,0,null,null,3,"Association de 3 figures LEVEL + justification",null,0,{"$f":"SUM(G7:G11)","v":0},{"$f":"SUM(M7:M11)","v":0}]
[null,null,"Question n°2","Non Traité",null,null,0,null,"Question n°2","Non Traité",null,null,0]
[null,null,null,0,"Aucune des réponses justes",null,0,null,null,0,"Sens de rotation faux et pas de détermination du nombre d'impulsions",null,0]
[null,null,null,1,"Relation exacte et calcul de la norme vitesse fausse sans unité",null,0,null,null,1,"Sens de rotation faux et  détermination du nombre d'impulsions",null,0]
[null,null,null,2,"Relation exacte et calcul de la norme vitesse fausse unité juste",null,0,null,null,2,"Sens de rotation juste et  pas de détermination du nombre d'impulsions",null,0]
[null,null,null,3,"Relation exacte et calcul de la norme vitesse juste avec les unités",null,0,null,null,3,"Sens de rotation juste et  détermination du nombre d'impulsions",null,0,{"$f":"SUM(G12:G16)","v":0},{"$f":"SUM(M12:M16)","v":0}]
[null,null,"Question n°3","Non Traité",null,null,{"$f":"IF(COUNTBLANK(F17),0,1)","v":0},null,"Question n°3","Non Traité",null,null,0]
[null,null,null,0,"Norme de l'action mécanique est mal exprimée (sans unité) et la puissance fausse.",null,0,null,null,0,"Pas de chronogramme tracé",null,0]
[null,null,null,1,"Norme de l'action mécanique correcte, mais la puissance n'est pas correctement calculée",null,0,null,null,1,"Chronogramme impulsion juste et chronogramme angle faux",null,0]
[null,null,null,2,"Norme de l'action mécanique correcte et la relation pour calculer la puissance correcte, mais l'application numérique fausse",null,0,null,null,2,"Chronogramme impulsion faux et chronogramme angle juste",null,0]
[null,null,null,3,"Norme de l'action mécanique correcte et la puissance sont correctement calculées.",null,0,null,null,3,"Chronogramme impulsion juste et chronogramme angle juste",null,0,{"$f":"SUM(G17:G21)","v":0},{"$f":"SUM(M17:M21)","v":0}]
[null,null,"Question n°4","Non Traité",null,null,0,null,"Question n°4","Non Traité",null,null,0]
[null,null,null,0,"Expression du rapport de transmission fausse ,pas de  calcul, détermination de la vitesse angulaire fausse",null,0,null,null,0,"Pas de justification du capteur et pas de calcul sur la précision",null,0]
[null,null,null,1,"Expression du rapport de transmission et le calcul, détermination de la vitesse angulaire (1 élément juste parmi les 3)",null,0,null,null,1,"Justification juste et calcul de la précision fausse",null,0]
[null,null,null,2,"Expression du rapport de transmission et le calcul, détermination de la vitesse angulaire (2 éléments juste parmi les 3)",null,0,null,null,2,"Justification de l'utilisation de ce capteur et calcul de la précision juste",null,0]
[null,null,null,3,"Expression du rapport de transmission et le calcul, détermination de la vitesse angulaire",null,0,null,null,3,"Justification de l'utilisation de ce capteur et   calcul sur la précision en degré pour 1 bit",null,0,{"$f":"SUM(G22:G26)","v":0},{"$f":"SUM(M22:M26)","v":0}]
[null,null,"Question n°5","Non Traité",null,null,0,null,"Question n°5","Non Traité",null,null,0]
[null,null,null,0,"Aucun calcul:  moment, aire des ailettes et  puissance",null,0,null,null,0,"Pas de calcul des tensions , pas de  relation littérale  pas de  détermination de N",null,0]
[null,null,null,1,"Calcul de l'aire faux donc  calcul erroné pour le moment et donc calcul de la puissance fausse",null,0,null,null,1,"Calcul des tensions ,relation littérale,  détermination de N (1 élément juste parmi les 3)",null,0]
[null,null,null,2,"Calcul de l'aire juste calcul (juste ou faux)  pour le moment, calcul de la puissance fausse",null,0,null,null,2,"Calcul des tensions ,relation littérale,  détermination de N (2 éléments juste parmi les 3)",null,0]
[null,null,null,3,"Calcul du moment de l'aire des ailettes et de la puissance justes",null,0,null,null,3,"Calcul des tensions , relation littérale et détermination de N",null,0,{"$f":"SUM(G27:G31)","v":0},{"$f":"SUM(M27:M31)","v":0}]
[null,null,"Question n°6","Non Traité",null,null,0,null,"Question n°6","Non Traité",null,null,0]
[null,null,null,0,null,null,0,null,null,0,"Pas de conclusion pas de proposition pour augmenter la précision",null,0]
[null,null,null,1,null,null,0,null,null,1,"Conclusion non argumentée  ou proposition pour augmenter la précision",null,0]
[null,null,null,2,null,null,0,null,null,2,"Conclusion non argumentée  et proposition pour augmenter la précision",null,0]
[null,null,null,3,null,null,0,null,null,3,"Conclusion argumentée avec écarts entre les deux solutions et proposition pour augmenter la précision",null,{"$f":"IF(COUNTBLANK(L36),0,1)","v":0},{"$f":"SUM(G32:G36)","v":0},{"$f":"SUM(M32:M36)","v":0}]
[]
[null,null,null,null,null,"question 1",{"$f":"IF(G7=1,0,IF(G8=1,0,IF(G9=1,1,IF(G10=1,2,IF(G11=1,3,0)))))","v":0},null,null,null,null,"question 1",{"$f":"IF(M7=1,0,IF(M8=1,0,IF(M9=1,1,IF(M10=1,2,IF(M11=1,3,0)))))","v":0}]
[null,null,null,null,null,"question 2",{"$f":"IF(G12=1,0,IF(G13=1,0,IF(G14=1,1,IF(G15=1,2,IF(G16=1,3,0)))))","v":0},null,null,null,null,"question 2",{"$f":"IF(M12=1,0,IF(M13=1,0,IF(M14=1,1,IF(M15=1,2,IF(M16=1,3,0)))))","v":0}]
[null,null,null,null,null,"question 3",{"$f":"IF(G17=1,0,IF(G18=1,0,IF(G19=1,1,IF(G20=1,2,IF(G21=1,3,0)))))","v":0},null,null,null,null,"question 3",{"$f":"IF(M17=1,0,IF(M18=1,0,IF(M19=1,1,IF(M20=1,2,IF(M21=1,3,0)))))","v":0}]
[null,null,null,null,null,"question 4",{"$f":"IF(G22=1,0,IF(G23=1,0,IF(G24=1,1,IF(G25=1,2,IF(G26=1,3,0)))))","v":0},null,null,null,null,"question 4",{"$f":"IF(M22=1,0,IF(M23=1,0,IF(M24=1,1,IF(M25=1,2,IF(M26=1,3,0)))))","v":0}]
[null,null,null,null,null,"question 5",{"$f":"IF(G27=1,0,IF(G28=1,0,IF(G29=1,1,IF(G30=1,2,IF(G31=1,3,0)))))","v":0},null,null,null,null,"question 5",{"$f":"IF(M27=1,0,IF(M28=1,0,IF(M29=1,1,IF(M30=1,2,IF(M31=1,3,0)))))","v":0}]
[null,null,null,null,null,"question 6",{"$f":"IF(G32=1,0,IF(G33=1,0,IF(G34=1,1,IF(G35=1,2,IF(G36=1,3,0)))))","v":0},null,null,null,null,"question 6",{"$f":"IF(M32=1,0,IF(M33=1,0,IF(M34=1,1,IF(M35=1,2,IF(M36=1,3,0)))))","v":0}]
[null,null,null,null,null,"condition NT",{"$f":"IF((G7*G12*G17*G22*G27*G32)=1,1,0)","v":0},null,null,null,null,"condition NT",{"$f":"IF((M7*M12*M17*M22*M27*M32)=1,1,0)","v":0}]

{"sheet":"Fiche d'évaluation","index":1,"n_rows":45,"n_cols":11,"rows_kept":45,"cut":false,"hidden":false,"merged":[[2,0,2,1],[4,0,4,1],[21,3,21,4],[26,3,26,4],[3,0,3,1],[3,4,3,5],[17,3,17,4],[18,3,18,4],[19,3,19,4],[20,3,20,4],[22,3,22,4],[44,1,44,2],[31,1,33,1],[25,3,25,4],[27,3,27,4],[31,3,31,4],[32,3,32,4],[33,3,33,4],[28,3,28,4],[39,1,41,4],[38,1,38,4],[45,1,45,2],[46,1,46,2],[47,1,47,2],[0,0,0,10],[1,0,1,10],[6,1,14,1],[6,3,6,4],[7,3,7,4],[8,3,8,4],[9,3,9,4],[10,3,10,4],[11,3,11,4],[12,3,12,4],[13,3,13,4],[14,3,14,4],[17,1,28,1],[39,6,39,8],[40,6,40,8],[36,3,36,4],[23,3,23,4],[24,3,24,4]]}
["Baccalauréat Général"]
["Spécialité sciences de l'ingénieur"]
["Identification du sujet :",null,"sujet 2",{"$f":"' correction ex 1 et 2 '!E4","v":""}]
["Session :",null,2019,null,"N° d'anonymat :"]
["Date de l'évaluation :",null,{"$f":"TODAY()","v":"2019-10-26"}]
[null,null,null,null,null,null,null,null,null,"Ex. 1","Ex. 2"]
[null,"ANALYSER","A.1","Analyser le besoin  d’un produit par une démarche d’ingénierie système",null,null,{"$f":"'Description des compétences'!S11","v":3.8461538461538464E-2},1,null,{"$f":"IF('Description des compétences'!$Y11=0,\"NE\",'Description des compétences'!$AG11)","v":0},{"$f":"IF('Description des compétences'!$Z11=0,\"NE\",'Description des compétences'!$AP11)","v":"NE"}]
[null,null,"A.2","Analyser l’organisation matérielle  d’un produit par une démarche d’ingénierie système",null,null,{"$f":"'Description des compétences'!S12","v":0.10096153846153846},"NE",null,{"$f":"IF('Description des compétences'!$Y12=0,\"NE\",'Description des compétences'!$AG12)","v":0},{"$f":"IF('Description des compétences'!$Z12=0,\"NE\",'Description des compétences'!$AP12)","v":0}]
[null,null,"A.3","Analyser l’organisation fonctionnelle d’un produit par une démarche d’ingénierie système",null,null,{"$f":"'Description des compétences'!S13","v":6.25E-2},1,null,{"$f":"IF('Description des compétences'!$Y13=0,\"NE\",'Description des compétences'!$AG13)","v":"NE"},{"$f":"IF('Description des compétences'!$Z13=0,\"NE\",'Description des compétences'!$AP13)","v":0}]
[null,null,"A.4","Caractériser la puissance nécessaire au fonctionnement d’un produit ou un système",null,null,{"$f":"'Description des compétences'!S14","v":7.6923076923076927E-2},1,null,{"$f":"IF('Description des compétences'!$Y14=0,\"NE\",'Description des compétences'!$AG14)","v":0},{"$f":"IF('Description des compétences'!$Z14=0,\"NE\",'Description des compétences'!$AP14)","v":"NE"}]
[null,null,"A.5","Caractériser l’énergie nécessaire au fonctionnement d’un produit ou un système",null,null,{"$f":"'Description des compétences'!S15","v":0},1,null,{"$f":"IF('Description des compétences'!$Y15=0,\"NE\",'Description des compétences'!$AG15)","v":"NE"},{"$f":"IF('Description des compétences'!$Z15=0,\"NE\",'Description des compétences'!$AP15)","v":"NE"}]
[null,null,"A.6","Repérer les échanges d’énergie sur un diagramme structurel",null,null,{"$f":"'Description des compétences'!S16","v":0},0.33333333333333331,null,{"$f":"IF('Description des compétences'!$Y16=0,\"NE\",'Description des compétences'!$AG16)","v":"NE"},{"$f":"IF('Description des compétences'!$Z16=0,\"NE\",'Description des compétences'!$AP16)","v":"NE"}]
[null,null,"A.7","Analyser les principaux protocoles pour un réseau de communication",null,null,{"$f":"'Description des compétences'!S17","v":0},1,null,{"$f":"IF('Description des compétences'!$Y17=0,\"NE\",'Description des compétences'!$AG17)","v":"NE"},{"$f":"IF('Description des compétences'!$Z17=0,\"NE\",'Description des compétences'!$AP17)","v":"NE"}]
[null,null,"A.8","Analyser les principaux les supports matériels (pour les réseaux)",null,null,{"$f":"'Description des compétences'!S18","v":0},"NE",null,{"$f":"IF('Description des compétences'!$Y18=0,\"NE\",'Description des compétences'!$AG18)","v":"NE"},{"$f":"IF('Description des compétences'!$Z18=0,\"NE\",'Description des compétences'!$AP18)","v":"NE"}]
[null,null,"A.9"," Quantifier les écarts de performance entre les valeurs attendues, mesurées, simulées",null,null,{"$f":"'Description des compétences'!S19","v":3.8461538461538464E-2},1,null,{"$f":"IF('Description des compétences'!$Y19=0,\"NE\",'Description des compétences'!$AG19)","v":0},{"$f":"IF('Description des compétences'!$Z19=0,\"NE\",'Description des compétences'!$AP19)","v":"NE"}]
[null,null,null,null,null,null,null,null,"Note \"analyser\"",{"$f":"SUM(J7:J15)","v":0},{"$f":"SUM(K7:K15)","v":0}]
[]
[null,"MODÉLISER \nET\nRÉSOUDRE","M&R.1","Proposer et justifier des hypothèses ou simplification en vue d’une modélisation",null,null,{"$f":"'Description des compétences'!S20","v":3.8461538461538464E-2},1,null,{"$f":"IF('Description des compétences'!$Y20=0,\"NE\",'Description des compétences'!$AG20)","v":0},{"$f":"IF('Description des compétences'!$Z20=0,\"NE\",'Description des compétences'!$AP20)","v":"NE"}]
[null,null,"M&R.2","Caractériser les grandeurs physiques en entrées/sorties d’un modèle multiphysique traduisant la transmission de puissance",null,null,{"$f":"'Description des compétences'!S21","v":3.8461538461538464E-2},0.33333333333333331,null,{"$f":"IF('Description des compétences'!$Y21=0,\"NE\",'Description des compétences'!$AG21)","v":0},{"$f":"IF('Description des compétences'!$Z21=0,\"NE\",'Description des compétences'!$AP21)","v":"NE"}]
[null,null,"M&R.3","Associer un modèle aux composants d’une chaîne de puissance ",null,null,{"$f":"'Description des compétences'!S22","v":3.8461538461538464E-2},1,null,{"$f":"IF('Description des compétences'!$Y22=0,\"NE\",'Description des compétences'!$AG22)","v":0},{"$f":"IF('Description des compétences'!$Z22=0,\"NE\",'Description des compétences'!$AP22)","v":"NE"}]
[null,null,"M&R.4","Traduire le comportement attendu ou observé d’un objet par une structure algorithmique",null,null,{"$f":"'Description des compétences'!S23","v":6.25E-2},0.33333333333333331,null,{"$f":"IF('Description des compétences'!$Y23=0,\"NE\",'Description des compétences'!$AG23)","v":"NE"},{"$f":"IF('Description des compétences'!$Z23=0,\"NE\",'Description des compétences'!$AP23)","v":0}]
[null,null,"M&R.5","Traduire le comportement attendu ou observé d’un objet par un diagramme d'états-transitions",null,null,{"$f":"'Description des compétences'!S24","v":0},1,null,{"$f":"IF('Description des compétences'!$Y24=0,\"NE\",'Description des compétences'!$AG24)","v":"NE"},{"$f":"IF('Description des compétences'!$Z24=0,\"NE\",'Description des compétences'!$AP24)","v":"NE"}]
[null,null,"M&R.6","Modéliser sous une forme graphique une structure, un mécanisme, un circuit ",null,null,{"$f":"'Description des compétences'!S25","v":0},0.33333333333333331,null,{"$f":"IF('Description des compétences'!$Y25=0,\"NE\",'Description des compétences'!$AG25)","v":"NE"},{"$f":"IF('Description des compétences'!$Z25=0,\"NE\",'Description des compétences'!$AP25)","v":"NE"}]
[null,null,"M&R.7","Modéliser les mouvements",null,null,{"$f":"'Description des compétences'!S26","v":3.8461538461538464E-2},1,null,{"$f":"IF('Description des compétences'!$Y26=0,\"NE\",'Description des compétences'!$AG26)","v":0},{"$f":"IF('Description des compétences'!$Z26=0,\"NE\",'Description des compétences'!$AP26)","v":"NE"}]
[null,null,"M&R.8","Modéliser les actions mécaniques",null,null,{"$f":"'Description des compétences'!S27","v":7.6923076923076927E-2},1,null,{"$f":"IF('Description des compétences'!$Y27=0,\"NE\",'Description des compétences'!$AG27)","v":0},{"$f":"IF('Description des compétences'!$Z27=0,\"NE\",'Description des compétences'!$AP27)","v":"NE"}]
[null,null,"M&R.9","Caractériser les échanges d’informations ",null,null,{"$f":"'Description des compétences'!S28","v":6.25E-2},1,null,{"$f":"IF('Description des compétences'!$Y28=0,\"NE\",'Description des compétences'!$AG28)","v":"NE"},{"$f":"IF('Description des compétences'!$Z28=0,\"NE\",'Description des compétences'!$AP28)","v":0}]
[null,null,"M&R.10","Associer un modèle à un système asservi ",null,null,{"$f":"'Description des compétences'!S29","v":0},1,null,{"$f":"IF('Description des compétences'!$Y29=0,\"NE\",'Description des compétences'!$AG29)","v":"NE"},{"$f":"IF('Description des compétences'!$Z29=0,\"NE\",'Description des compétences'!$AP29)","v":"NE"}]
[null,null,"M&R.11","Déterminer les grandeurs flux (courant) et effort (tension) dans un circuit électrique ",null,null,{"$f":"'Description des compétences'!S30","v":6.25E-2},1,null,{"$f":"IF('Description des compétences'!$Y30=0,\"NE\",'Description des compétences'!$AG30)","v":"NE"},{"$f":"IF('Description des compétences'!$Z30=0,\"NE\",'Description des compétences'!$AP30)","v":0}]
[null,null,"M&R.12","Déterminer les grandeurs géométriques et cinématiques d’un mécanisme",null,null,{"$f":"'Description des compétences'!S31","v":3.8461538461538464E-2},0.33333333333333331,null,{"$f":"IF('Description des compétences'!$Y31=0,\"NE\",'Description des compétences'!$AG31)","v":0},{"$f":"IF('Description des compétences'!$Z31=0,\"NE\",'Description des compétences'!$AP31)","v":"NE"}]
[null,null,null,null,null,null,null,null,"Note \"modéliser et résoudre\"",{"$f":"SUM(J18:J29)","v":0},{"$f":"SUM(K18:K29)","v":0}]
[]
[null,"EXPÉRIMENTER\nET\nSIMULER","E&S.1","Prévoir l’ordre de grandeur de la mesure",null,null,{"$f":"'Description des compétences'!S32","v":0.10096153846153846},1,null,{"$f":"IF('Description des compétences'!$Y32=0,\"NE\",'Description des compétences'!$AG32)","v":0},{"$f":"IF('Description des compétences'!$Z32=0,\"NE\",'Description des compétences'!$AP32)","v":0}]
[null,null,"E&S.2","Identifier les erreurs de mesure",null,null,{"$f":"'Description des compétences'!S33","v":6.25E-2},1,null,{"$f":"IF('Description des compétences'!$Y33=0,\"NE\",'Description des compétences'!$AG33)","v":"NE"},{"$f":"IF('Description des compétences'!$Z33=0,\"NE\",'Description des compétences'!$AP33)","v":0}]
[null,null,"E&S.3","Relever les grandeurs caractéristiques d’un protocole de communication",null,null,{"$f":"'Description des compétences'!S34","v":0},"NE",null,{"$f":"IF('Description des compétences'!$Y34=0,\"NE\",'Description des compétences'!$AG34)","v":"NE"},{"$f":"IF('Description des compétences'!$Z34=0,\"NE\",'Description des compétences'!$AP34)","v":"NE"}]
[null,null,null,null,null,null,null,null,"Note \"expérimenter et simuler\"",{"$f":"SUM(J32:J34)","v":0},{"$f":"SUM(K32:K34)","v":0}]
[]
[null,"COMMUNIQUER","C.1","Rendre compte des résultats",null,null,{"$f":"'Description des compétences'!S35","v":6.25E-2},0.33333333333333331,null,{"$f":"IF('Description des compétences'!$Y35=0,\"NE\",'Description des compétences'!$AG35)","v":"NE"},{"$f":"IF('Description des compétences'!$Z35=0,\"NE\",'Description des compétences'!$AP35)","v":0}]
[null,null,null,null,null,null,null,null,"Note \"communiquer\"",{"$f":"'Description des compétences'!AG355","v":0},{"$f":"SUM(K37)","v":0}]
[null,"Appréciations globales"]
[null,null,null,null,null,null,"Note Total Ex.1",null,null,{"$f":"IF('Description des compétences'!F42=1,\"!\",SUM(J7:J15,J18:J29,J32:J34,J37))","v":0}]
[null,null,null,null,null,null,"Note Total Ex. 2",null,null,null,{"$f":"IF('Description des compétences'!$F$42=1,\"!\",SUM(K7:K15,K18:K29,K32:K34,K37))","v":0}]
[]
[null,null,null,null,null,null,null,null,"Note brute sur 20 obtenue par calcul automatique :",{"$f":"IF('Description des compétences'!$F$42=1,\"!\",ROUNDUP(SUM(J40,K41),1))","v":0}]
[null,null,null,null,null,null,null,null,"Note sur 20 proposée par les correcteurs:"]
[null,"Nom et Prénom des correcteurs",null,null,"Signature"]

{"sheet":"Description des compétences","index":2,"n_rows":52,"n_cols":44,"rows_kept":52,"cut":false,"hidden":false,"merged":[[8,26,8,32],[8,34,8,40],[8,17,9,17],[8,18,9,18],[42,5,42,6],[43,3,43,6],[42,3,42,4],[8,5,8,10],[8,11,8,16],[10,1,18,1],[31,1,33,1],[19,1,30,1]]}
[]
[]
[]
[]
[]
[]
[]
[]
[null,null,null,null,null,"EXERCICE 1",null,null,null,null,null,"EXERCICE 2",null,null,null,null,null,"Indicateur\nrouge si évaluée 2 fois, \nVert si évaluée 1 fois;\norange si non évaluée","Poids de la compétence dans l'évaluation",null,null,null,null,null,null,null,"Calcul Question Exercice 1",null,null,null,null,null,null,null,"Calcul Question Exercice 2"]
[null,"Compétences",null,"Compétences développées détaillées",null,"Q1","Q2","Q3","Q4","Q5","Q6","Q1","Q2","Q3","Q4","Q5","Q6",null,null,null,null,null,null,null,null,null,"Q1","Q2","Q3","Q4","Q6","Q6",null,null,null,"Q1","Q2","Q3","Q4","Q6","Q6"]
[null,"ANALYSER","A.1","Analyser le besoin  d’un produit par une démarche d’ingénierie système",null,null,null,null,null,1,null,null,null,null,null,null,null,null,{"$f":"((Y11+Z11)*5)/100","v":3.8461538461538464E-2},{"$f":"12-COUNTBLANK(F11:Q11)","v":1},{"$f":"IF(T11>0,1,0)","v":1},null,null,null,{"$f":"(SUM(F11:K11)/$C$36)*10","v":0.76923076923076927},{"$f":"(SUM(L11:Q11)/$S$36)*10","v":0},{"$f":"(F11/$C$36)*' correction ex 1 et 2 '!$G$38","v":0},{"$f":"(G11/$C$36)*' correction ex 1 et 2 '!$G$39","v":0},{"$f":"(H11/$C$36)*' correction ex 1 et 2 '!$G$40","v":0},{"$f":"(I11/$C$36)*' correction ex 1 et 2 '!$G$41","v":0},{"$f":"(J11/$C$36)*' correction ex 1 et 2 '!$G$42","v":0},{"$f":"(K11/$C$36)*' correction ex 1 et 2 '!$G$43","v":0},{"$f":"((SUM(AA11:AF11))/3)*10","v":0},null,null,{"$f":"(L11/$S$36)*' correction ex 1 et 2 '!$M$38","v":0},{"$f":"(M11/$S$36)*' correction ex 1 et 2 '!$M$39","v":0},{"$f":"(N11/$S$36)*' correction ex 1 et 2 '!$M$40","v":0},{"$f":"(O11/$S$36)*' correction ex 1 et 2 '!$M$41","v":0},{"$f":"(P11/$S$36)*' correction ex 1 et 2 '!$M$42","v":0},{"$f":"(Q11/$S$36)*' correction ex 1 et 2 '!$M$43","v":0},{"$f":"((SUM(AJ11:AO11))/3)*10","v":0},{"$f":"SUM(F11:K11)","v":1},{"$f":"SUM(L11:Q11)","v":0}]
[null,null,"A.2","Analyser l’organisation matérielle  d’un produit par une démarche d’ingénierie système",null,null,null,null,null,1,null,1,null,null,null,null,null,null,{"$f":"((Y12+Z12)*5)/100","v":0.10096153846153846},{"$f":"12-COUNTBLANK(F12:Q12)","v":2},{"$f":"IF(T12>0,1,0)","v":1},null,null,null,{"$f":"(SUM(F12:K12)/$C$36)*10","v":0.76923076923076927},{"$f":"(SUM(L12:Q12)/$S$36)*10","v":1.25},{"$f":"(F12/$C$36)*' correction ex 1 et 2 '!$G$38","v":0},{"$f":"(G12/$C$36)*' correction ex 1 et 2 '!$G$39","v":0},{"$f":"(H12/$C$36)*' correction ex 1 et 2 '!$G$40","v":0},{"$f":"(I12/$C$36)*' correction ex 1 et 2 '!$G$41","v":0},{"$f":"(J12/$C$36)*' correction ex 1 et 2 '!$G$42","v":0},{"$f":"(K12/$C$36)*' correction ex 1 et 2 '!$G$43","v":0},{"$f":"((SUM(AA12:AF12))/3)*10","v":0},null,null,{"$f":"(L12/$S$36)*' correction ex 1 et 2 '!$M$38","v":0},{"$f":"(M12/$S$36)*' correction ex 1 et 2 '!$M$39","v":0},{"$f":"(N12/$S$36)*' correction ex 1 et 2 '!$M$40","v":0},{"$f":"(O12/$S$36)*' correction ex 1 et 2 '!$M$41","v":0},{"$f":"(P12/$S$36)*' correction ex 1 et 2 '!$M$42","v":0},{"$f":"(Q12/$S$36)*' correction ex 1 et 2 '!$M$43","v":0},{"$f":"((SUM(AJ12:AO12))/3)*10","v":0},{"$f":"SUM(F12:K12)","v":1},{"$f":"SUM(L12:Q12)","v":1}]
[null,null,"A.3","Analyser l’organisation fonctionnelle d’un produit par une démarche d’ingénierie système",null,null,null,null,null,null,null,null,1,null,null,null,null,null,6.25E-2,1,1,null,null,null,0,1.25,{"$f":"(F13/$C$36)*' correction ex 1 et 2 '!$G$38","v":0},{"$f":"(G13/$C$36)*' correction ex 1 et 2 '!$G$39","v":0},{"$f":"(H13/$C$36)*' correction ex 1 et 2 '!$G$40","v":0},{"$f":"(I13/$C$36)*' correction ex 1 et 2 '!$G$41","v":0},{"$f":"(J13/$C$36)*' correction ex 1 et 2 '!$G$42","v":0},{"$f":"(K13/$C$36)*' correction ex 1 et 2 '!$G$43","v":0},0,null,null,{"$f":"(L13/$S$36)*' correction ex 1 et 2 '!$M$38","v":0},{"$f":"(M13/$S$36)*' correction ex 1 et 2 '!$M$39","v":0},{"$f":"(N13/$S$36)*' correction ex 1 et 2 '!$M$40","v":0},{"$f":"(O13/$S$36)*' correction ex 1 et 2 '!$M$41","v":0},{"$f":"(P13/$S$36)*' correction ex 1 et 2 '!$M$42","v":0},{"$f":"(Q13/$S$36)*' correction ex 1 et 2 '!$M$43","v":0},0,0,1]
[null,null,"A.4","Caractériser la puissance nécessaire au fonctionnement d’un produit ou un système",null,null,1,null,1,null,null,null,null,null,null,null,null,null,7.6923076923076927E-2,2,1,null,null,null,1.5384615384615385,0,{"$f":"(F14/$C$36)*' correction ex 1 et 2 '!$G$38","v":0},{"$f":"(G14/$C$36)*' correction ex 1 et 2 '!$G$39","v":0},{"$f":"(H14/$C$36)*' correction ex 1 et 2 '!$G$40","v":0},{"$f":"(I14/$C$36)*' correction ex 1 et 2 '!$G$41","v":0},{"$f":"(J14/$C$36)*' correction ex 1 et 2 '!$G$42","v":0},{"$f":"(K14/$C$36)*' correction ex 1 et 2 '!$G$43","v":0},0,null,null,{"$f":"(L14/$S$36)*' correction ex 1 et 2 '!$M$38","v":0},{"$f":"(M14/$S$36)*' correction ex 1 et 2 '!$M$39","v":0},{"$f":"(N14/$S$36)*' correction ex 1 et 2 '!$M$40","v":0},{"$f":"(O14/$S$36)*' correction ex 1 et 2 '!$M$41","v":0},{"$f":"(P14/$S$36)*' correction ex 1 et 2 '!$M$42","v":0},{"$f":"(Q14/$S$36)*' correction ex 1 et 2 '!$M$43","v":0},0,2,0]
[null,null,"A.5","Caractériser l’énergie nécessaire au fonctionnement d’un produit ou un système",null,null,null,null,null,null,null,null,null,null,null,null,null,null,0,0,0,null,null,null,0,0,{"$f":"(F15/$C$36)*' correction ex 1 et 2 '!$G$38","v":0},{"$f":"(G15/$C$36)*' correction ex 1 et 2 '!$G$39","v":0},{"$f":"(H15/$C$36)*' correction ex 1 et 2 '!$G$40","v":0},{"$f":"(I15/$C$36)*' correction ex 1 et 2 '!$G$41","v":0},{"$f":"(J15/$C$36)*' correction ex 1 et 2 '!$G$42","v":0},{"$f":"(K15/$C$36)*' correction ex 1 et 2 '!$G$43","v":0},0,null,null,{"$f":"(L15/$S$36)*' correction ex 1 et 2 '!$M$38","v":0},{"$f":"(M15/$S$36)*' correction ex 1 et 2 '!$M$39","v":0},{"$f":"(N15/$S$36)*' correction ex 1 et 2 '!$M$40","v":0},{"$f":"(O15/$S$36)*' correction ex 1 et 2 '!$M$41","v":0},{"$f":"(P15/$S$36)*' correction ex 1 et 2 '!$M$42","v":0},{"$f":"(Q15/$S$36)*' correction ex 1 et 2 '!$M$43","v":0},0,0,0]
[null,null,"A.6","Repérer les échanges d’énergie sur un diagramme structurel",null,null,null,null,null,null,null,null,null,null,null,null,null,null,0,0,0,null,null,null,0,0,{"$f":"(F16/$C$36)*' correction ex 1 et 2 '!$G$38","v":0},{"$f":"(G16/$C$36)*' correction ex 1 et 2 '!$G$39","v":0},{"$f":"(H16/$C$36)*' correction ex 1 et 2 '!$G$40","v":0},{"$f":"(I16/$C$36)*' correction ex 1 et 2 '!$G$41","v":0},{"$f":"(J16/$C$36)*' correction ex 1 et 2 '!$G$42","v":0},{"$f":"(K16/$C$36)*' correction ex 1 et 2 '!$G$43","v":0},0,null,null,{"$f":"(L16/$S$36)*' correction ex 1 et 2 '!$M$38","v":0},{"$f":"(M16/$S$36)*' correction ex 1 et 2 '!$M$39","v":0},{"$f":"(N16/$S$36)*' correction ex 1 et 2 '!$M$40","v":0},{"$f":"(O16/$S$36)*' correction ex 1 et 2 '!$M$41","v":0},{"$f":"(P16/$S$36)*' correction ex 1 et 2 '!$M$42","v":0},{"$f":"(Q16/$S$36)*' correction ex 1 et 2 '!$M$43","v":0},0,0,0]
[null,null,"A.7","Analyser les principaux protocoles pour un réseau de communication",null,null,null,null,null,null,null,null,null,null,null,null,null,null,0,0,0,null,null,null,0,0,{"$f":"(F17/$C$36)*' correction ex 1 et 2 '!$G$38","v":0},{"$f":"(G17/$C$36)*' correction ex 1 et 2 '!$G$39","v":0},{"$f":"(H17/$C$36)*' correction ex 1 et 2 '!$G$40","v":0},{"$f":"(I17/$C$36)*' correction ex 1 et 2 '!$G$41","v":0},{"$f":"(J17/$C$36)*' correction ex 1 et 2 '!$G$42","v":0},{"$f":"(K17/$C$36)*' correction ex 1 et 2 '!$G$43","v":0},0,null,null,{"$f":"(L17/$S$36)*' correction ex 1 et 2 '!$M$38","v":0},{"$f":"(M17/$S$36)*' correction ex 1 et 2 '!$M$39","v":0},{"$f":"(N17/$S$36)*' correction ex 1 et 2 '!$M$40","v":0},{"$f":"(O17/$S$36)*' correction ex 1 et 2 '!$M$41","v":0},{"$f":"(P17/$S$36)*' correction ex 1 et 2 '!$M$42","v":0},{"$f":"(Q17/$S$36)*' correction ex 1 et 2 '!$M$43","v":0},0,0,0]
[null,null,"A.8","Analyser les principaux les supports matériels (pour les réseaux)",null,null,null,null,null,null,null,null,null,null,null,null,null,null,0,0,0,null,null,null,0,0,{"$f":"(F18/$C$36)*' correction ex 1 et 2 '!$G$38","v":0},{"$f":"(G18/$C$36)*' correction ex 1 et 2 '!$G$39","v":0},{"$f":"(H18/$C$36)*' correction ex 1 et 2 '!$G$40","v":0},{"$f":"(I18/$C$36)*' correction ex 1 et 2 '!$G$41","v":0},{"$f":"(J18/$C$36)*' correction ex 1 et 2 '!$G$42","v":0},{"$f":"(K18/$C$36)*' correction ex 1 et 2 '!$G$43","v":0},0,null,null,{"$f":"(L18/$S$36)*' correction ex 1 et 2 '!$M$38","v":0},{"$f":"(M18/$S$36)*' correction ex 1 et 2 '!$M$39","v":0},{"$f":"(N18/$S$36)*' correction ex 1 et 2 '!$M$40","v":0},{"$f":"(O18/$S$36)*' correction ex 1 et 2 '!$M$41","v":0},{"$f":"(P18/$S$36)*' correction ex 1 et 2 '!$M$42","v":0},{"$f":"(Q18/$S$36)*' correction ex 1 et 2 '!$M$43","v":0},0,0,0]
[null,null,"A.9"," Quantifier les écarts de performance entre les valeurs attendues, mesurées, simulées",null,null,null,null,null,1,null,null,null,null,null,null,null,null,3.8461538461538464E-2,1,1,null,null,null,0.76923076923076927,0,{"$f":"(F19/$C$36)*' correction ex 1 et 2 '!$G$38","v":0},{"$f":"(G19/$C$36)*' correction ex 1 et 2 '!$G$39","v":0},{"$f":"(H19/$C$36)*' correction ex 1 et 2 '!$G$40","v":0},{"$f":"(I19/$C$36)*' correction ex 1 et 2 '!$G$41","v":0},{"$f":"(J19/$C$36)*' correction ex 1 et 2 '!$G$42","v":0},{"$f":"(K19/$C$36)*' correction ex 1 et 2 '!$G$43","v":0},0,null,null,{"$f":"(L19/$S$36)*' correction ex 1 et 2 '!$M$38","v":0},{"$f":"(M19/$S$36)*' correction ex 1 et 2 '!$M$39","v":0},{"$f":"(N19/$S$36)*' correction ex 1 et 2 '!$M$40","v":0},{"$f":"(O19/$S$36)*' correction ex 1 et 2 '!$M$41","v":0},{"$f":"(P19/$S$36)*' correction ex 1 et 2 '!$M$42","v":0},{"$f":"(Q19/$S$36)*' correction ex 1 et 2 '!$M$43","v":0},0,1,0]
[null,"MODÉLISER ET RÉSOUDRE","M&R.1","Proposer et justifier des hypothèses ou simplification en vue d’une modélisation",null,null,null,null,1,null,null,null,null,null,null,null,null,null,3.8461538461538464E-2,1,1,null,null,null,0.76923076923076927,0,{"$f":"(F20/$C$36)*' correction ex 1 et 2 '!$G$38","v":0},{"$f":"(G20/$C$36)*' correction ex 1 et 2 '!$G$39","v":0},{"$f":"(H20/$C$36)*' correction ex 1 et 2 '!$G$40","v":0},{"$f":"(I20/$C$36)*' correction ex 1 et 2 '!$G$41","v":0},{"$f":"(J20/$C$36)*' correction ex 1 et 2 '!$G$42","v":0},{"$f":"(K20/$C$36)*' correction ex 1 et 2 '!$G$43","v":0},0,null,null,{"$f":"(L20/$S$36)*' correction ex 1 et 2 '!$M$38","v":0},{"$f":"(M20/$S$36)*' correction ex 1 et 2 '!$M$39","v":0},{"$f":"(N20/$S$36)*' correction ex 1 et 2 '!$M$40","v":0},{"$f":"(O20/$S$36)*' correction ex 1 et 2 '!$M$41","v":0},{"$f":"(P20/$S$36)*' correction ex 1 et 2 '!$M$42","v":0},{"$f":"(Q20/$S$36)*' correction ex 1 et 2 '!$M$43","v":0},0,1,0]
[null,null,"M&R.2","Caractériser les grandeurs physiques en entrées/sorties d’un modèle multiphysique traduisant la transmission de puissance",null,null,null,1,null,null,null,null,null,null,null,null,null,null,3.8461538461538464E-2,1,1,null,null,null,0.76923076923076927,0,{"$f":"(F21/$C$36)*' correction ex 1 et 2 '!$G$38","v":0},{"$f":"(G21/$C$36)*' correction ex 1 et 2 '!$G$39","v":0},{"$f":"(H21/$C$36)*' correction ex 1 et 2 '!$G$40","v":0},{"$f":"(I21/$C$36)*' correction ex 1 et 2 '!$G$41","v":0},{"$f":"(J21/$C$36)*' correction ex 1 et 2 '!$G$42","v":0},{"$f":"(K21/$C$36)*' correction ex 1 et 2 '!$G$43","v":0},0,null,null,{"$f":"(L21/$S$36)*' correction ex 1 et 2 '!$M$38","v":0},{"$f":"(M21/$S$36)*' correction ex 1 et 2 '!$M$39","v":0},{"$f":"(N21/$S$36)*' correction ex 1 et 2 '!$M$40","v":0},{"$f":"(O21/$S$36)*' correction ex 1 et 2 '!$M$41","v":0},{"$f":"(P21/$S$36)*' correction ex 1 et 2 '!$M$42","v":0},{"$f":"(Q21/$S$36)*' correction ex 1 et 2 '!$M$43","v":0},0,1,0]
[null,null,"M&R.3","Associer un modèle aux composants d’une chaîne de puissance ",null,null,null,1,null,null,null,null,null,null,null,null,null,null,3.8461538461538464E-2,1,1,null,null,null,0.76923076923076927,0,{"$f":"(F22/$C$36)*' correction ex 1 et 2 '!$G$38","v":0},{"$f":"(G22/$C$36)*' correction ex 1 et 2 '!$G$39","v":0},{"$f":"(H22/$C$36)*' correction ex 1 et 2 '!$G$40","v":0},{"$f":"(I22/$C$36)*' correction ex 1 et 2 '!$G$41","v":0},{"$f":"(J22/$C$36)*' correction ex 1 et 2 '!$G$42","v":0},{"$f":"(K22/$C$36)*' correction ex 1 et 2 '!$G$43","v":0},0,null,null,{"$f":"(L22/$S$36)*' correction ex 1 et 2 '!$M$38","v":0},{"$f":"(M22/$S$36)*' correction ex 1 et 2 '!$M$39","v":0},{"$f":"(N22/$S$36)*' correction ex 1 et 2 '!$M$40","v":0},{"$f":"(O22/$S$36)*' correction ex 1 et 2 '!$M$41","v":0},{"$f":"(P22/$S$36)*' correction ex 1 et 2 '!$M$42","v":0},{"$f":"(Q22/$S$36)*' correction ex 1 et 2 '!$M$43","v":0},0,1,0]
[null,null,"M&R.4","Traduire le comportement attendu ou observé d’un objet par une structure algorithmique",null,null,null,null,null,null,null,null,null,1,null,null,null,null,6.25E-2,1,1,null,null,null,0,1.25,{"$f":"(F23/$C$36)*' correction ex 1 et 2 '!$G$38","v":0},{"$f":"(G23/$C$36)*' correction ex 1 et 2 '!$G$39","v":0},{"$f":"(H23/$C$36)*' correction ex 1 et 2 '!$G$40","v":0},{"$f":"(I23/$C$36)*' correction ex 1 et 2 '!$G$41","v":0},{"$f":"(J23/$C$36)*' correction ex 1 et 2 '!$G$42","v":0},{"$f":"(K23/$C$36)*' correction ex 1 et 2 '!$G$43","v":0},0,null,null,{"$f":"(L23/$S$36)*' correction ex 1 et 2 '!$M$38","v":0},{"$f":"(M23/$S$36)*' correction ex 1 et 2 '!$M$39","v":0},{"$f":"(N23/$S$36)*' correction ex 1 et 2 '!$M$40","v":0},{"$f":"(O23/$S$36)*' correction ex 1 et 2 '!$M$41","v":0},{"$f":"(P23/$S$36)*' correction ex 1 et 2 '!$M$42","v":0},{"$f":"(Q23/$S$36)*' correction ex 1 et 2 '!$M$43","v":0},0,0,1]
[null,null,"M&R.5","Traduire le comportement attendu ou observé d’un objet par un diagramme d'états-transitions",null,null,null,null,null,null,null,null,null,null,null,null,null,null,0,0,0,null,null,null,0,0,{"$f":"(F24/$C$36)*' correction ex 1 et 2 '!$G$38","v":0},{"$f":"(G24/$C$36)*' correction ex 1 et 2 '!$G$39","v":0},{"$f":"(H24/$C$36)*' correction ex 1 et 2 '!$G$40","v":0},{"$f":"(I24/$C$36)*' correction ex 1 et 2 '!$G$41","v":0},{"$f":"(J24/$C$36)*' correction ex 1 et 2 '!$G$42","v":0},{"$f":"(K24/$C$36)*' correction ex 1 et 2 '!$G$43","v":0},0,null,null,{"$f":"(L24/$S$36)*' correction ex 1 et 2 '!$M$38","v":0},{"$f":"(M24/$S$36)*' correction ex 1 et 2 '!$M$39","v":0},{"$f":"(N24/$S$36)*' correction ex 1 et 2 '!$M$40","v":0},{"$f":"(O24/$S$36)*' correction ex 1 et 2 '!$M$41","v":0},{"$f":"(P24/$S$36)*' correction ex 1 et 2 '!$M$42","v":0},{"$f":"(Q24/$S$36)*' correction ex 1 et 2 '!$M$43","v":0},0,0,0]
[null,null,"M&R.6","Modéliser sous une forme graphique une structure, un mécanisme, un circuit ",null,null,null,null,null,null,null,null,null,null,null,null,null,null,0,0,0,null,null,null,0,0,{"$f":"(F25/$C$36)*' correction ex 1 et 2 '!$G$38","v":0},{"$f":"(G25/$C$36)*' correction ex 1 et 2 '!$G$39","v":0},{"$f":"(H25/$C$36)*' correction ex 1 et 2 '!$G$40","v":0},{"$f":"(I25/$C$36)*' correction ex 1 et 2 '!$G$41","v":0},{"$f":"(J25/$C$36)*' correction ex 1 et 2 '!$G$42","v":0},{"$f":"(K25/$C$36)*' correction ex 1 et 2 '!$G$43","v":0},0,null,null,{"$f":"(L25/$S$36)*' correction ex 1 et 2 '!$M$38","v":0},{"$f":"(M25/$S$36)*' correction ex 1 et 2 '!$M$39","v":0},{"$f":"(N25/$S$36)*' correction ex 1 et 2 '!$M$40","v":0},{"$f":"(O25/$S$36)*' correction ex 1 et 2 '!$M$41","v":0},{"$f":"(P25/$S$36)*' correction ex 1 et 2 '!$M$42","v":0},{"$f":"(Q25/$S$36)*' correction ex 1 et 2 '!$M$43","v":0},0,0,0]
[null,null,"M&R.7","Modéliser les mouvements",null,1,null,null,null,null,null,null,null,null,null,null,null,null,3.8461538461538464E-2,1,1,null,null,null,0.76923076923076927,0,{"$f":"(F26/$C$36)*' correction ex 1 et 2 '!$G$38","v":0},{"$f":"(G26/$C$36)*' correction ex 1 et 2 '!$G$39","v":0},{"$f":"(H26/$C$36)*' correction ex 1 et 2 '!$G$40","v":0},{"$f":"(I26/$C$36)*' correction ex 1 et 2 '!$G$41","v":0},{"$f":"(J26/$C$36)*' correction ex 1 et 2 '!$G$42","v":0},{"$f":"(K26/$C$36)*' correction ex 1 et 2 '!$G$43","v":0},0,null,null,{"$f":"(L26/$S$36)*' correction ex 1 et 2 '!$M$38","v":0},{"$f":"(M26/$S$36)*' correction ex 1 et 2 '!$M$39","v":0},{"$f":"(N26/$S$36)*' correction ex 1 et 2 '!$M$40","v":0},{"$f":"(O26/$S$36)*' correction ex 1 et 2 '!$M$41","v":0},{"$f":"(P26/$S$36)*' correction ex 1 et 2 '!$M$42","v":0},{"$f":"(Q26/$S$36)*' correction ex 1 et 2 '!$M$43","v":0},0,1,0]
[null,null,"M&R.8","Modéliser les actions mécaniques",null,null,1,null,1,null,null,null,null,null,null,null,null,null,7.6923076923076927E-2,2,1,null,null,null,1.5384615384615385,0,{"$f":"(F27/$C$36)*' correction ex 1 et 2 '!$G$38","v":0},{"$f":"(G27/$C$36)*' correction ex 1 et 2 '!$G$39","v":0},{"$f":"(H27/$C$36)*' correction ex 1 et 2 '!$G$40","v":0},{"$f":"(I27/$C$36)*' correction ex 1 et 2 '!$G$41","v":0},{"$f":"(J27/$C$36)*' correction ex 1 et 2 '!$G$42","v":0},{"$f":"(K27/$C$36)*' correction ex 1 et 2 '!$G$43","v":0},0,null,null,{"$f":"(L27/$S$36)*' correction ex 1 et 2 '!$M$38","v":0},{"$f":"(M27/$S$36)*' correction ex 1 et 2 '!$M$39","v":0},{"$f":"(N27/$S$36)*' correction ex 1 et 2 '!$M$40","v":0},{"$f":"(O27/$S$36)*' correction ex 1 et 2 '!$M$41","v":0},{"$f":"(P27/$S$36)*' correction ex 1 et 2 '!$M$42","v":0},{"$f":"(Q27/$S$36)*' correction ex 1 et 2 '!$M$43","v":0},0,2,0]
[null,null,"M&R.9","Caractériser les échanges d’informations ",null,null,null,null,null,null,null,null,null,null,1,null,null,null,6.25E-2,1,1,null,null,null,0,1.25,{"$f":"(F28/$C$36)*' correction ex 1 et 2 '!$G$38","v":0},{"$f":"(G28/$C$36)*' correction ex 1 et 2 '!$G$39","v":0},{"$f":"(H28/$C$36)*' correction ex 1 et 2 '!$G$40","v":0},{"$f":"(I28/$C$36)*' correction ex 1 et 2 '!$G$41","v":0},{"$f":"(J28/$C$36)*' correction ex 1 et 2 '!$G$42","v":0},{"$f":"(K28/$C$36)*' correction ex 1 et 2 '!$G$43","v":0},0,null,null,{"$f":"(L28/$S$36)*' correction ex 1 et 2 '!$M$38","v":0},{"$f":"(M28/$S$36)*' correction ex 1 et 2 '!$M$39","v":0},{"$f":"(N28/$S$36)*' correction ex 1 et 2 '!$M$40","v":0},{"$f":"(O28/$S$36)*' correction ex 1 et 2 '!$M$41","v":0},{"$f":"(P28/$S$36)*' correction ex 1 et 2 '!$M$42","v":0},{"$f":"(Q28/$S$36)*' correction ex 1 et 2 '!$M$43","v":0},0,0,1]
[null,null,"M&R.10","Associer un modèle à un système asservi ",null,null,null,null,null,null,null,null,null,null,null,null,null,null,0,0,0,null,null,null,0,0,{"$f":"(F29/$C$36)*' correction ex 1 et 2 '!$G$38","v":0},{"$f":"(G29/$C$36)*' correction ex 1 et 2 '!$G$39","v":0},{"$f":"(H29/$C$36)*' correction ex 1 et 2 '!$G$40","v":0},{"$f":"(I29/$C$36)*' correction ex 1 et 2 '!$G$41","v":0},{"$f":"(J29/$C$36)*' correction ex 1 et 2 '!$G$42","v":0},{"$f":"(K29/$C$36)*' correction ex 1 et 2 '!$G$43","v":0},0,null,null,{"$f":"(L29/$S$36)*' correction ex 1 et 2 '!$M$38","v":0},{"$f":"(M29/$S$36)*' correction ex 1 et 2 '!$M$39","v":0},{"$f":"(N29/$S$36)*' correction ex 1 et 2 '!$M$40","v":0},{"$f":"(O29/$S$36)*' correction ex 1 et 2 '!$M$41","v":0},{"$f":"(P29/$S$36)*' correction ex 1 et 2 '!$M$42","v":0},{"$f":"(Q29/$S$36)*' correction ex 1 et 2 '!$M$43","v":0},0,0,0]
[null,null,"M&R.11","Déterminer les grandeurs flux (courant) et effort (tension) dans un circuit électrique ",null,null,null,null,null,null,null,null,null,null,null,1,null,null,6.25E-2,1,1,null,null,null,0,1.25,{"$f":"(F30/$C$36)*' correction ex 1 et 2 '!$G$38","v":0},{"$f":"(G30/$C$36)*' correction ex 1 et 2 '!$G$39","v":0},{"$f":"(H30/$C$36)*' correction ex 1 et 2 '!$G$40","v":0},{"$f":"(I30/$C$36)*' correction ex 1 et 2 '!$G$41","v":0},{"$f":"(J30/$C$36)*' correction ex 1 et 2 '!$G$42","v":0},{"$f":"(K30/$C$36)*' correction ex 1 et 2 '!$G$43","v":0},0,null,null,{"$f":"(L30/$S$36)*' correction ex 1 et 2 '!$M$38","v":0},{"$f":"(M30/$S$36)*' correction ex 1 et 2 '!$M$39","v":0},{"$f":"(N30/$S$36)*' correction ex 1 et 2 '!$M$40","v":0},{"$f":"(O30/$S$36)*' correction ex 1 et 2 '!$M$41","v":0},{"$f":"(P30/$S$36)*' correction ex 1 et 2 '!$M$42","v":0},{"$f":"(Q30/$S$36)*' correction ex 1 et 2 '!$M$43","v":0},0,0,1]
[null,null,"M&R.12","Déterminer les grandeurs géométriques et cinématiques d’un mécanisme",null,null,null,1,null,null,null,null,null,null,null,null,null,null,3.8461538461538464E-2,1,1,null,null,null,0.76923076923076927,0,{"$f":"(F31/$C$36)*' correction ex 1 et 2 '!$G$38","v":0},{"$f":"(G31/$C$36)*' correction ex 1 et 2 '!$G$39","v":0},{"$f":"(H31/$C$36)*' correction ex 1 et 2 '!$G$40","v":0},{"$f":"(I31/$C$36)*' correction ex 1 et 2 '!$G$41","v":0},{"$f":"(J31/$C$36)*' correction ex 1 et 2 '!$G$42","v":0},{"$f":"(K31/$C$36)*' correction ex 1 et 2 '!$G$43","v":0},0,null,null,{"$f":"(L31/$S$36)*' correction ex 1 et 2 '!$M$38","v":0},{"$f":"(M31/$S$36)*' correction ex 1 et 2 '!$M$39","v":0},{"$f":"(N31/$S$36)*' correction ex 1 et 2 '!$M$40","v":0},{"$f":"(O31/$S$36)*' correction ex 1 et 2 '!$M$41","v":0},{"$f":"(P31/$S$36)*' correction ex 1 et 2 '!$M$42","v":0},{"$f":"(Q31/$S$36)*' correction ex 1 et 2 '!$M$43","v":0},0,1,0]
[null,"EXPÉRIMENTER\nET\nSIMULER","E&S.1","Prévoir l’ordre de grandeur de la mesure",null,null,1,null,null,null,null,null,null,null,null,1,null,null,0.10096153846153846,2,1,null,null,null,0.76923076923076927,1.25,{"$f":"(F32/$C$36)*' correction ex 1 et 2 '!$G$38","v":0},{"$f":"(G32/$C$36)*' correction ex 1 et 2 '!$G$39","v":0},{"$f":"(H32/$C$36)*' correction ex 1 et 2 '!$G$40","v":0},{"$f":"(I32/$C$36)*' correction ex 1 et 2 '!$G$41","v":0},{"$f":"(J32/$C$36)*' correction ex 1 et 2 '!$G$42","v":0},{"$f":"(K32/$C$36)*' correction ex 1 et 2 '!$G$43","v":0},0,null,null,{"$f":"(L32/$S$36)*' correction ex 1 et 2 '!$M$38","v":0},{"$f":"(M32/$S$36)*' correction ex 1 et 2 '!$M$39","v":0},{"$f":"(N32/$S$36)*' correction ex 1 et 2 '!$M$40","v":0},{"$f":"(O32/$S$36)*' correction ex 1 et 2 '!$M$41","v":0},{"$f":"(P32/$S$36)*' correction ex 1 et 2 '!$M$42","v":0},{"$f":"(Q32/$S$36)*' correction ex 1 et 2 '!$M$43","v":0},0,1,1]
[null,null,"E&S.2","Identifier les erreurs de mesure",null,null,null,null,null,null,null,null,null,null,1,null,null,null,6.25E-2,1,1,null,null,null,0,1.25,{"$f":"(F33/$C$36)*' correction ex 1 et 2 '!$G$38","v":0},{"$f":"(G33/$C$36)*' correction ex 1 et 2 '!$G$39","v":0},{"$f":"(H33/$C$36)*' correction ex 1 et 2 '!$G$40","v":0},{"$f":"(I33/$C$36)*' correction ex 1 et 2 '!$G$41","v":0},{"$f":"(J33/$C$36)*' correction ex 1 et 2 '!$G$42","v":0},{"$f":"(K33/$C$36)*' correction ex 1 et 2 '!$G$43","v":0},0,null,null,{"$f":"(L33/$S$36)*' correction ex 1 et 2 '!$M$38","v":0},{"$f":"(M33/$S$36)*' correction ex 1 et 2 '!$M$39","v":0},{"$f":"(N33/$S$36)*' correction ex 1 et 2 '!$M$40","v":0},{"$f":"(O33/$S$36)*' correction ex 1 et 2 '!$M$41","v":0},{"$f":"(P33/$S$36)*' correction ex 1 et 2 '!$M$42","v":0},{"$f":"(Q33/$S$36)*' correction ex 1 et 2 '!$M$43","v":0},0,0,1]
[null,null,"E&S.3","Relever les grandeurs caractéristiques d’un protocole de communication",null,null,null,null,null,null,null,null,null,null,null,null,null,null,0,0,0,null,null,null,0,0,{"$f":"(F34/$C$36)*' correction ex 1 et 2 '!$G$38","v":0},{"$f":"(G34/$C$36)*' correction ex 1 et 2 '!$G$39","v":0},{"$f":"(H34/$C$36)*' correction ex 1 et 2 '!$G$40","v":0},{"$f":"(I34/$C$36)*' correction ex 1 et 2 '!$G$41","v":0},{"$f":"(J34/$C$36)*' correction ex 1 et 2 '!$G$42","v":0},{"$f":"(K34/$C$36)*' correction ex 1 et 2 '!$G$43","v":0},0,null,null,{"$f":"(L34/$S$36)*' correction ex 1 et 2 '!$M$38","v":0},{"$f":"(M34/$S$36)*' correction ex 1 et 2 '!$M$39","v":0},{"$f":"(N34/$S$36)*' correction ex 1 et 2 '!$M$40","v":0},{"$f":"(O34/$S$36)*' correction ex 1 et 2 '!$M$41","v":0},{"$f":"(P34/$S$36)*' correction ex 1 et 2 '!$M$42","v":0},{"$f":"(Q34/$S$36)*' correction ex 1 et 2 '!$M$43","v":0},0,0,0]
[null,"COMMUNIQUER","C.1","Rendre compte de résultats",null,null,null,null,null,null,null,null,null,null,null,null,1,null,6.25E-2,{"$f":"12-COUNTBLANK(F35:Q35)","v":1},1,null,null,null,0,1.25,{"$f":"(F35/$C$36)*' correction ex 1 et 2 '!$G$38","v":0},{"$f":"(G35/$C$36)*' correction ex 1 et 2 '!$G$39","v":0},{"$f":"(H35/$C$36)*' correction ex 1 et 2 '!$G$40","v":0},{"$f":"(I35/$C$36)*' correction ex 1 et 2 '!$G$41","v":0},{"$f":"(J35/$C$36)*' correction ex 1 et 2 '!$G$42","v":0},{"$f":"(K35/$C$36)*' correction ex 1 et 2 '!$G$43","v":0},0,null,null,{"$f":"(L35/$S$36)*' correction ex 1 et 2 '!$M$38","v":0},{"$f":"(M35/$S$36)*' correction ex 1 et 2 '!$M$39","v":0},{"$f":"(N35/$S$36)*' correction ex 1 et 2 '!$M$40","v":0},{"$f":"(O35/$S$36)*' correction ex 1 et 2 '!$M$41","v":0},{"$f":"(P35/$S$36)*' correction ex 1 et 2 '!$M$42","v":0},{"$f":"(Q35/$S$36)*' correction ex 1 et 2 '!$M$43","v":0},0,{"$f":"SUM(F35:K35)","v":0},1]
[null,null,{"$f":"SUM(F11:K35)","v":13},{"$f":"SUM(F36:K36)","v":13},null,{"$f":"SUM(F11:F35)","v":1},{"$f":"SUM(G11:G35)","v":3},{"$f":"SUM(H11:H35)","v":3},3,3,0,{"$f":"SUM(L11:L35)","v":1},{"$f":"SUM(M11:M35)","v":1},1,2,2,1,{"$f":"SUM(L36:Q36)","v":8},{"$f":"SUM(L11:Q35)","v":8},{"$f":"SUM(T11:T35)","v":21},{"$f":"SUM(U11:U35)","v":17}]
[null,null,null,"Poids de la question dans l'exercice ",null,{"$f":"(F36/$D$36)","v":7.6923076923076927E-2},{"$f":"(G36/$D$36)","v":0.23076923076923078},{"$f":"(H36/$D$36)","v":0.23076923076923078},0.23076923076923078,0.23076923076923078,0,{"$f":"(L36/$S$36)","v":0.125},{"$f":"(M36/$S$36)","v":0.125},0.125,0.25,0.25,0.125,null,{"$f":"SUM(S11:S35)","v":0.99999999999999978},{"$f":"SUM(F37:K37)","v":1.0000000000000002},{"$f":"SUM(L37:Q37)","v":1},null,null,null,null,null,{"$f":"SUM(AA11:AA35)","v":0},{"$f":"SUM(AB11:AB35)","v":0},0,0,0,0,null,null,null,{"$f":"SUM(AJ11:AJ35)","v":0},{"$f":"SUM(AK11:AK35)","v":0},0,0,0,0]
[]
[null,null,null," des compétences  évaluées dans la question %",null,{"$f":"(F45)/25","v":0.04},{"$f":"(G45)/25","v":0.12},{"$f":"(H45)/25","v":0.12},{"$f":"(I45)/25","v":0.12},0.12,0,0.04,0.04,0.04,0.08,0.08,0.04]
[]
[]
[null,null,null,null,null,{"$f":"IF(F43<0.5,1,\"\")","v":""},{"$f":"COUNTBLANK(G11:G35)","v":22},22,22,22,25,24,24,24,23,23,24]
[null,null,null,"Pourcentage de compétences évaluées par le sujet",null,{"$f":"U36/25","v":0.68}]
[null,null,null,{"$f":"'Fiche d''évaluation'!D3","v":""}]
[null,null,null,null,null,{"$f":"25-COUNTBLANK(F11:F35)","v":1},3,3,3,3,0,1,1,1,2,2,1]
[null,null,null,null,null,{"$f":"150-COUNTBLANK($F$11:$K$35)","v":13},{"$f":"150-COUNTBLANK($F$11:$K$35)","v":13},13,13,13,13,{"$f":"150-COUNTBLANK($L$11:$Q$35)","v":8},{"$f":"150-COUNTBLANK($L$11:$Q$35)","v":8},8,8,8,8,null,null,{"$f":"SUM(F46:Q46)","v":126}]
[]
[null,null,null,null,null,{"$f":"(SUM(F11:F35)/$C$36)*10","v":0.76923076923076927},{"$f":"(SUM(G11:G35)/$C$36)*10","v":2.3076923076923079},2.3076923076923079,2.3076923076923079,2.3076923076923079,0,{"$f":"(SUM(L11:L35)/$S$36)*10","v":1.25},{"$f":"(SUM(M11:M35)/$S$36)*10","v":1.25},1.25,2.5,2.5,1.25]
[]
[]
[null,null,"E&S.2'","Conduire des essais en toute sécurité à partir d’un protocole expérimental fourni ???"]
[null,null,"C.2","Collecter et extraire des données Comparer, traiter, organiser et synthétiser les informations pertinentes ???"]